[Event "Titled Tuesday Blitz May 16 Late 2023"]
[White "Iturrizaga Bonelli, Eduardo"]
[Black "Jimenez Almeida, Luis David"]
[WhiteFideId "3901211"]
[BlackFideId "22242244"]
[WhiteElo "2637"]
[BlackElo "2245"]
[Result "1-0"]
[Round "01"]
[TimeControl "180+2"]
[Date "2023.05.16"]
[WhiteClock "0:01:41"]
[BlackClock "0:00:45"]

1. c4 {[%clk 0:02:59]}  g6 {[%clk 0:02:58]} 2. g3 {[%clk 0:03:00]}  Bg7 {[%clk 0:02:59]} 3. Bg2 {[%clk 0:03:01]}  f5 {[%clk 0:02:59]} 4. Nc3 {[%clk 0:03:01]}  Nf6 {[%clk 0:03:00]} 5. d4 {[%clk 0:03:02]}  d6 {[%clk 0:03:00]} 6. Nh3 {[%clk 0:03:02]}  O-O {[%clk 0:03:00]} 7. d5 {[%clk 0:03:02]}  a5 {[%clk 0:02:47]} 8. O-O {[%clk 0:03:03]}  Qe8 {[%clk 0:02:45]} 9. Nf4 {[%clk 0:03:03]}  c6 {[%clk 0:02:44]} 10. Be3 {[%clk 0:03:02]}  Na6 {[%clk 0:02:37]} 11. Rc1 {[%clk 0:03:00]}  Ng4 {[%clk 0:02:29]} 12. Bd4 {[%clk 0:02:59]}  Ne5 {[%clk 0:02:29]} 13. b3 {[%clk 0:02:59]}  c5 {[%clk 0:02:23]} 14. Be3 {[%clk 0:02:59]}  Nc7 {[%clk 0:02:23]} 15. Nd3 {[%clk 0:02:55]}  Ng4 {[%clk 0:02:21]} 16. Bd2 {[%clk 0:02:54]}  Bd7 {[%clk 0:02:18]} 17. a4 {[%clk 0:02:54]}  e5 {[%clk 0:01:55]} 18. dxe6 {[%clk 0:02:53]}  Bc6 {[%clk 0:01:55]} 19. Nf4 {[%clk 0:02:42]}  Nxe6 {[%clk 0:01:52]} 20. Ncd5 {[%clk 0:02:39]}  Rd8 {[%clk 0:01:34]} 21. Bxa5 {[%clk 0:02:37]}  Rd7 {[%clk 0:01:29]} 22. e3 {[%clk 0:02:31]}  Ng5 {[%clk 0:01:27]} 23. h3 {[%clk 0:02:26]}  Ne5 {[%clk 0:01:27]} 24. Bc3 {[%clk 0:02:25]}  Kh8 {[%clk 0:01:26]} 25. Kh2 {[%clk 0:02:23]}  Ngf7 {[%clk 0:01:20]} 26. a5 {[%clk 0:02:21]}  h6 {[%clk 0:01:09]} 27. e4 {[%clk 0:02:16]}  fxe4 {[%clk 0:01:07]} 28. Bxe4 {[%clk 0:02:14]}  g5 {[%clk 0:01:02]} 29. Nh5 {[%clk 0:02:08]}  g4 {[%clk 0:00:52]} 30. Nxg7 {[%clk 0:01:53]}  Kxg7 {[%clk 0:00:53]} 31. Qxg4+ {[%clk 0:01:52]}  Kh8 {[%clk 0:00:45]} 32. f4 {[%clk 0:01:41]} 1-0


[Site "https://www.chess.com"]

[Event "Titled Tuesday Blitz May 16 Late 2023"]
[White "Petrovic, Aleksa"]
[Black "Sattarov, Bobir"]
[WhiteFideId "967629"]
[BlackFideId "14203081"]
[WhiteElo "2309"]
[BlackElo "2351"]
[Result "0-1"]
[Round "01"]
[TimeControl "180+2"]
[Date "2023.05.16"]
[WhiteClock "0:00:03"]
[BlackClock "0:01:12"]

1. e4 {[%clk 0:02:58]}  e5 {[%clk 0:02:59]} 2. Nf3 {[%clk 0:02:58]}  Nc6 {[%clk 0:02:59]} 3. Bc4 {[%clk 0:02:57]}  Nf6 {[%clk 0:02:59]} 4. d4 {[%clk 0:02:56]}  exd4 {[%clk 0:02:58]} 5. O-O {[%clk 0:02:55]}  Nxe4 {[%clk 0:02:57]} 6. Re1 {[%clk 0:02:55]}  d5 {[%clk 0:02:57]} 7. Bxd5 {[%clk 0:02:55]}  Qxd5 {[%clk 0:02:58]} 8. Nc3 {[%clk 0:02:55]}  Qa5 {[%clk 0:02:56]} 9. Nxe4 {[%clk 0:02:48]}  Be6 {[%clk 0:02:51]} 10. Neg5 {[%clk 0:02:44]}  O-O-O {[%clk 0:02:51]} 11. Nxe6 {[%clk 0:02:44]}  fxe6 {[%clk 0:02:51]} 12. Rxe6 {[%clk 0:02:44]}  h6 {[%clk 0:02:46]} 13. Qe2 {[%clk 0:02:30]}  Bd6 {[%clk 0:02:36]} 14. h3 {[%clk 0:02:23]}  g5 {[%clk 0:02:35]} 15. Bd2 {[%clk 0:02:18]}  Qf5 {[%clk 0:02:32]} 16. Qe4 {[%clk 0:02:16]}  Qf7 {[%clk 0:02:28]} 17. Re1 {[%clk 0:02:10]}  Kb8 {[%clk 0:02:16]} 18. Qg6 {[%clk 0:02:08]}  Qd7 {[%clk 0:02:15]} 19. c3 {[%clk 0:01:40]}  dxc3 {[%clk 0:02:12]} 20. Bxc3 {[%clk 0:01:41]}  Rhg8 {[%clk 0:02:11]} 21. Qxh6 {[%clk 0:01:38]}  g4 {[%clk 0:02:11]} 22. hxg4 {[%clk 0:01:37]}  Rxg4 {[%clk 0:02:12]} 23. Qh5 {[%clk 0:01:28]}  Rgg8 {[%clk 0:02:06]} 24. Rg6 {[%clk 0:01:17]}  Qf7 {[%clk 0:01:51]} 25. Ree6 {[%clk 0:01:00]}  Ne7 {[%clk 0:01:36]} 26. Rxg8 {[%clk 0:00:33]}  Qxg8 {[%clk 0:01:24]} 27. Ng5 {[%clk 0:00:31]}  Nd5 {[%clk 0:01:17]} 28. Be5 {[%clk 0:00:21]}  Nf4 {[%clk 0:01:13]} 29. Bxf4 {[%clk 0:00:14]}  Bxf4 {[%clk 0:01:14]} 30. Nf7 {[%clk 0:00:03]}  Qxf7 {[%clk 0:01:12]} 0-1


[Site "https://www.chess.com"]

[Event "Titled Tuesday Blitz May 16 Late 2023"]
[White "Rodshtein, Maxim"]
[Black "Lucas, Arthur"]
[WhiteFideId "2806851"]
[BlackFideId "26093073"]
[WhiteElo "2555"]
[BlackElo "2251"]
[Result "1-0"]
[Round "01"]
[TimeControl "180+2"]
[Date "2023.05.16"]
[WhiteClock "0:00:54"]
[BlackClock "0:00:03"]

1. c4 {[%clk 0:02:57]}  Nf6 {[%clk 0:02:58]} 2. Nc3 {[%clk 0:02:57]}  g6 {[%clk 0:02:59]} 3. e4 {[%clk 0:02:56]}  d6 {[%clk 0:02:59]} 4. d4 {[%clk 0:02:56]}  Bg7 {[%clk 0:03:00]} 5. Nge2 {[%clk 0:02:57]}  O-O {[%clk 0:03:00]} 6. Ng3 {[%clk 0:02:57]}  h5 {[%clk 0:02:56]} 7. Be2 {[%clk 0:02:47]}  h4 {[%clk 0:02:56]} 8. Nf1 {[%clk 0:02:47]}  c5 {[%clk 0:02:53]} 9. d5 {[%clk 0:02:39]}  e6 {[%clk 0:02:52]} 10. Bg5 {[%clk 0:02:10]}  Qa5 {[%clk 0:02:45]} 11. Nd2 {[%clk 0:02:04]}  h3 {[%clk 0:02:39]} 12. gxh3 {[%clk 0:02:00]}  exd5 {[%clk 0:02:38]} 13. cxd5 {[%clk 0:01:55]}  Bxh3 {[%clk 0:02:34]} 14. Rg1 {[%clk 0:01:47]}  Bd7 {[%clk 0:02:25]} 15. h4 {[%clk 0:01:32]}  b5 {[%clk 0:02:21]} 16. a4 {[%clk 0:01:29]}  b4 {[%clk 0:02:19]} 17. Nb5 {[%clk 0:01:24]}  Qb6 {[%clk 0:01:13]} 18. h5 {[%clk 0:01:19]}  Bxb5 {[%clk 0:00:54]} 19. axb5 {[%clk 0:01:19]}  Nbd7 {[%clk 0:00:52]} 20. Ra6 {[%clk 0:01:17]}  Qd8 {[%clk 0:00:42]} 21. hxg6 {[%clk 0:01:06]}  fxg6 {[%clk 0:00:42]} 22. Bg4 {[%clk 0:01:05]}  Ne5 {[%clk 0:00:20]} 23. Be6+ {[%clk 0:01:05]}  Nf7 {[%clk 0:00:19]} 24. e5 {[%clk 0:00:59]}  dxe5 {[%clk 0:00:16]} 25. Ne4 {[%clk 0:00:59]}  Nxe4 {[%clk 0:00:09]} 26. Bxd8 {[%clk 0:00:58]}  Raxd8 {[%clk 0:00:10]} 27. Rxg6 {[%clk 0:00:57]}  Kh7 {[%clk 0:00:07]} 28. Qh5+ {[%clk 0:00:56]}  Nh6 {[%clk 0:00:07]} 29. Rxh6+ {[%clk 0:00:55]}  Bxh6 {[%clk 0:00:08]} 30. Rxa7+ {[%clk 0:00:55]}  Rd7 {[%clk 0:00:01]} 31. Rxd7+ {[%clk 0:00:54]}  Rf7 {[%clk 0:00:02]} 32. Rxf7+ {[%clk 0:00:53]}  Kg8 {[%clk 0:00:03]} 33. Qg6+ {[%clk 0:00:53]}  Bg7 {[%clk 0:00:03]} 34. Qxg7# {[%clk 0:00:54]} 1-0


[Site "https://www.chess.com"]

[Event "Titled Tuesday Blitz May 16 Late 2023"]
[White "Sokolovsky, Yahli"]
[Black "merinasian"]
[WhiteFideId "2820242"]
[WhiteElo "2389"]
[BlackElo "2458"]
[Result "1-0"]
[Round "01"]
[TimeControl "180+2"]
[Date "2023.05.16"]
[WhiteClock "0:00:07"]
[BlackClock "0:00:08"]

1. b3 {[%clk 0:03:00]}  e5 {[%clk 0:02:58]} 2. Bb2 {[%clk 0:03:01]}  Nc6 {[%clk 0:02:58]} 3. e3 {[%clk 0:03:00]}  d5 {[%clk 0:02:58]} 4. Nf3 {[%clk 0:03:00]}  Bd6 {[%clk 0:02:57]} 5. Bb5 {[%clk 0:03:01]}  f6 {[%clk 0:02:53]} 6. c4 {[%clk 0:02:57]}  Ne7 {[%clk 0:02:49]} 7. Nc3 {[%clk 0:02:50]}  Be6 {[%clk 0:02:45]} 8. d4 {[%clk 0:02:47]}  e4 {[%clk 0:02:31]} 9. Nd2 {[%clk 0:02:38]}  Bb4 {[%clk 0:02:29]} 10. cxd5 {[%clk 0:02:32]}  Bxc3 {[%clk 0:02:28]} 11. Bxc3 {[%clk 0:01:54]}  Bxd5 {[%clk 0:02:25]} 12. Qc2 {[%clk 0:01:40]}  f5 {[%clk 0:02:18]} 13. f3 {[%clk 0:01:41]}  O-O {[%clk 0:02:05]} 14. O-O-O {[%clk 0:01:34]}  a6 {[%clk 0:01:53]} 15. Be2 {[%clk 0:01:33]}  a5 {[%clk 0:01:41]} 16. Bb5 {[%clk 0:01:14]}  Nb4 {[%clk 0:01:36]} 17. Qb2 {[%clk 0:01:10]}  c6 {[%clk 0:01:33]} 18. Be2 {[%clk 0:01:10]}  b5 {[%clk 0:01:16]} 19. Rhf1 {[%clk 0:01:06]}  Qd6 {[%clk 0:01:01]} 20. a3 {[%clk 0:00:56]}  Nd3+ {[%clk 0:00:55]} 21. Bxd3 {[%clk 0:00:56]}  exd3 {[%clk 0:00:55]} 22. e4 {[%clk 0:00:53]}  b4 {[%clk 0:00:55]} 23. exd5 {[%clk 0:00:42]}  bxc3 {[%clk 0:00:48]} 24. Qxc3 {[%clk 0:00:43]}  Nxd5 {[%clk 0:00:46]} 25. Qb2 {[%clk 0:00:29]}  Ne3 {[%clk 0:00:42]} 26. Nc4 {[%clk 0:00:29]}  Nxc4 {[%clk 0:00:41]} 27. bxc4 {[%clk 0:00:30]}  Rab8 {[%clk 0:00:35]} 28. Qc3 {[%clk 0:00:29]}  a4 {[%clk 0:00:35]} 29. Rxd3 {[%clk 0:00:11]}  Rb3 {[%clk 0:00:35]} 30. Qc2 {[%clk 0:00:12]}  Qxa3+ {[%clk 0:00:35]} 31. Kd2 {[%clk 0:00:12]}  Rfb8 {[%clk 0:00:30]} 32. Rc1 {[%clk 0:00:05]}  Rxd3+ {[%clk 0:00:24]} 33. Qxd3 {[%clk 0:00:06]}  Rb2+ {[%clk 0:00:23]} 34. Rc2 {[%clk 0:00:06]}  Qb4+ {[%clk 0:00:22]} 35. Qc3 {[%clk 0:00:06]}  Rxc2+ {[%clk 0:00:22]} 36. Kxc2 {[%clk 0:00:07]}  Qb6 {[%clk 0:00:18]} 37. d5 {[%clk 0:00:03]}  cxd5 {[%clk 0:00:16]} 38. cxd5 {[%clk 0:00:04]}  Qf2+ {[%clk 0:00:14]} 39. Qd2 {[%clk 0:00:04]}  Qc5+ {[%clk 0:00:14]} 40. Kd1 {[%clk 0:00:05]}  a3 {[%clk 0:00:14]} 41. d6 {[%clk 0:00:04]}  Qg1+ {[%clk 0:00:12]} 42. Kc2 {[%clk 0:00:05]}  a2 {[%clk 0:00:11]} 43. Qd5+ {[%clk 0:00:05]}  Kf8 {[%clk 0:00:10]} 44. Qxf5+ {[%clk 0:00:05]}  Kg8 {[%clk 0:00:10]} 45. Qe6+ {[%clk 0:00:06]}  Kf8 {[%clk 0:00:08]} 46. Qe7+ {[%clk 0:00:06]}  Kg8 {[%clk 0:00:08]} 47. Qe8# {[%clk 0:00:07]} 1-0


[Site "https://www.chess.com"]

[Event "Titled Tuesday Blitz May 16 Late 2023"]
[White "Toniutti, Ezio"]
[Black "Quispe Arteaga, Gabriel"]
[WhiteFideId "113034"]
[BlackFideId "32059809"]
[WhiteElo "2215"]
[BlackElo "2274"]
[Result "0-1"]
[Round "01"]
[TimeControl "180+2"]
[Date "2023.05.16"]
[WhiteClock "0:00:21"]
[BlackClock "0:02:19"]

1. d4 {[%clk 0:02:57]}  Nf6 {[%clk 0:03:00]} 2. c4 {[%clk 0:02:56]}  e6 {[%clk 0:03:00]} 3. g3 {[%clk 0:02:55]}  Bb4+ {[%clk 0:03:00]} 4. Bd2 {[%clk 0:02:55]}  Be7 {[%clk 0:03:00]} 5. Nf3 {[%clk 0:02:54]}  d5 {[%clk 0:03:00]} 6. Bg2 {[%clk 0:02:54]}  O-O {[%clk 0:03:01]} 7. O-O {[%clk 0:02:55]}  c6 {[%clk 0:03:00]} 8. Qc2 {[%clk 0:02:55]}  Nbd7 {[%clk 0:03:01]} 9. Rd1 {[%clk 0:02:55]}  b6 {[%clk 0:03:01]} 10. Bf4 {[%clk 0:02:54]}  Ba6 {[%clk 0:03:01]} 11. Nbd2 {[%clk 0:02:54]}  Nh5 {[%clk 0:03:00]} 12. Rac1 {[%clk 0:02:39]}  Nxf4 {[%clk 0:03:00]} 13. gxf4 {[%clk 0:02:40]}  Bd6 {[%clk 0:02:58]} 14. e3 {[%clk 0:02:40]}  Rc8 {[%clk 0:02:54]} 15. Bf1 {[%clk 0:02:21]}  Bb7 {[%clk 0:02:53]} 16. Bg2 {[%clk 0:02:18]}  f5 {[%clk 0:02:49]} 17. Qa4 {[%clk 0:02:12]}  a6 {[%clk 0:02:29]} 18. cxd5 {[%clk 0:02:11]}  cxd5 {[%clk 0:02:29]} 19. Ne5 {[%clk 0:01:53]}  Nxe5 {[%clk 0:02:27]} 20. dxe5 {[%clk 0:01:53]}  Bc5 {[%clk 0:02:25]} 21. b4 {[%clk 0:01:51]}  b5 {[%clk 0:02:26]} 22. Qb3 {[%clk 0:01:49]}  Bb6 {[%clk 0:02:25]} 23. Nf3 {[%clk 0:01:46]}  Qe7 {[%clk 0:02:25]} 24. Nd4 {[%clk 0:01:44]}  Rc4 {[%clk 0:02:23]} 25. a3 {[%clk 0:01:39]}  g5 {[%clk 0:02:23]} 26. fxg5 {[%clk 0:01:30]}  f4 {[%clk 0:02:23]} 27. Rxc4 {[%clk 0:01:19]}  dxc4 {[%clk 0:02:22]} 28. Qc2 {[%clk 0:00:30]}  Qxg5 {[%clk 0:02:20]} 29. f3 {[%clk 0:00:30]}  fxe3 {[%clk 0:02:19]} 30. Nxe6 {[%clk 0:00:21]}  e2+ {[%clk 0:02:19]} 0-1


[Site "https://www.chess.com"]

[Event "Titled Tuesday Blitz May 16 Late 2023"]
[White "Riehle, Marco"]
[Black "Womacka, Mathias"]
[WhiteFideId "12904392"]
[BlackFideId "4611390"]
[WhiteElo "2462"]
[BlackElo "2377"]
[Result "1-0"]
[Round "01"]
[TimeControl "180+2"]
[Date "2023.05.16"]
[WhiteClock "0:00:14"]
[BlackClock "0:00:06"]

1. e4 {[%clk 0:02:27]}  c5 {[%clk 0:02:58]} 2. a3 {[%clk 0:02:27]}  g6 {[%clk 0:02:55]} 3. h4 {[%clk 0:02:26]}  Bg7 {[%clk 0:02:48]} 4. h5 {[%clk 0:02:24]}  Nc6 {[%clk 0:02:48]} 5. Nc3 {[%clk 0:02:23]}  d6 {[%clk 0:02:44]} 6. Bc4 {[%clk 0:02:24]}  e6 {[%clk 0:02:38]} 7. d3 {[%clk 0:02:23]}  a6 {[%clk 0:02:29]} 8. Nf3 {[%clk 0:02:23]}  b5 {[%clk 0:02:26]} 9. Bb3 {[%clk 0:02:23]}  Bb7 {[%clk 0:02:24]} 10. Bg5 {[%clk 0:02:23]}  Qd7 {[%clk 0:02:14]} 11. Qd2 {[%clk 0:02:22]}  h6 {[%clk 0:02:06]} 12. hxg6 {[%clk 0:02:16]}  hxg5 {[%clk 0:02:04]} 13. gxf7+ {[%clk 0:02:16]}  Qxf7 {[%clk 0:01:56]} 14. Rxh8 {[%clk 0:02:16]}  Bxh8 {[%clk 0:01:56]} 15. Nxg5 {[%clk 0:02:13]}  Qg6 {[%clk 0:01:55]} 16. Bxe6 {[%clk 0:02:07]}  Ne5 {[%clk 0:01:39]} 17. O-O-O {[%clk 0:01:57]}  Bf6 {[%clk 0:01:39]} 18. Nh3 {[%clk 0:01:50]}  Ne7 {[%clk 0:01:23]} 19. f4 {[%clk 0:01:40]}  Nd7 {[%clk 0:01:19]} 20. f5 {[%clk 0:01:39]}  Qg7 {[%clk 0:01:18]} 21. Nf4 {[%clk 0:01:36]}  O-O-O {[%clk 0:01:11]} 22. Kb1 {[%clk 0:01:34]}  Kb8 {[%clk 0:01:10]} 23. Rh1 {[%clk 0:01:23]}  Ne5 {[%clk 0:01:08]} 24. Nh5 {[%clk 0:01:14]}  Qg5 {[%clk 0:01:08]} 25. Qxg5 {[%clk 0:01:08]}  Bxg5 {[%clk 0:01:08]} 26. f6 {[%clk 0:01:08]}  N7g6 {[%clk 0:01:03]} 27. Rf1 {[%clk 0:01:00]}  Rf8 {[%clk 0:00:53]} 28. Rf5 {[%clk 0:00:54]}  Bh6 {[%clk 0:00:49]} 29. Nd5 {[%clk 0:00:48]}  Bc8 {[%clk 0:00:39]} 30. Bxc8 {[%clk 0:00:44]}  Kxc8 {[%clk 0:00:40]} 31. c3 {[%clk 0:00:38]}  Kd7 {[%clk 0:00:39]} 32. Kc2 {[%clk 0:00:36]}  Nf7 {[%clk 0:00:26]} 33. d4 {[%clk 0:00:34]}  cxd4 {[%clk 0:00:25]} 34. cxd4 {[%clk 0:00:34]}  Rc8+ {[%clk 0:00:24]} 35. Kb3 {[%clk 0:00:34]}  Rc1 {[%clk 0:00:23]} 36. Ng3 {[%clk 0:00:19]}  Rd1 {[%clk 0:00:21]} 37. Rf3 {[%clk 0:00:17]}  Rxd4 {[%clk 0:00:19]} 38. Nf5 {[%clk 0:00:18]}  Rxe4 {[%clk 0:00:17]} 39. Nxh6 {[%clk 0:00:19]}  Nxh6 {[%clk 0:00:17]} 40. f7 {[%clk 0:00:20]}  Nf8 {[%clk 0:00:17]} 41. Nf6+ {[%clk 0:00:20]}  Ke6 {[%clk 0:00:17]} 42. Nxe4 {[%clk 0:00:21]}  Nxf7 {[%clk 0:00:16]} 43. Ng5+ {[%clk 0:00:21]}  Nxg5 {[%clk 0:00:16]} 44. Rxf8 {[%clk 0:00:22]}  Ne4 {[%clk 0:00:14]} 45. Re8+ {[%clk 0:00:21]}  Kf5 {[%clk 0:00:13]} 46. Kc2 {[%clk 0:00:18]}  Kf4 {[%clk 0:00:12]} 47. Kd3 {[%clk 0:00:15]}  Nc5+ {[%clk 0:00:12]} 48. Kd4 {[%clk 0:00:15]}  Na4 {[%clk 0:00:11]} 49. b4 {[%clk 0:00:15]}  Nb2 {[%clk 0:00:11]} 50. Ra8 {[%clk 0:00:14]}  Kg3 {[%clk 0:00:08]} 51. Rxa6 {[%clk 0:00:14]}  Kxg2 {[%clk 0:00:09]} 52. Rxd6 {[%clk 0:00:14]}  Kf3 {[%clk 0:00:09]} 53. Kc5 {[%clk 0:00:14]}  Ke4 {[%clk 0:00:08]} 54. Kxb5 {[%clk 0:00:13]}  Nd3 {[%clk 0:00:09]} 55. Rxd3 {[%clk 0:00:14]}  Kxd3 {[%clk 0:00:06]} 56. a4 {[%clk 0:00:14]} 1-0


[Site "https://www.chess.com"]

[Event "Titled Tuesday Blitz May 16 Late 2023"]
[White "Koutlas, Nikolaos"]
[Black "Averjanov, Alexey"]
[WhiteFideId "25827138"]
[BlackFideId "14109867"]
[WhiteElo "2215"]
[BlackElo "2803"]
[Result "1-0"]
[Round "01"]
[TimeControl "180+2"]
[Date "2023.05.16"]
[WhiteClock "0:01:18"]
[BlackClock "0:01:20"]

1. Nf3 {[%clk 0:02:53]}  d5 {[%clk 0:02:59]} 2. c4 {[%clk 0:02:53]}  e6 {[%clk 0:02:59]} 3. e3 {[%clk 0:02:51]}  dxc4 {[%clk 0:02:59]} 4. Bxc4 {[%clk 0:02:50]}  Nf6 {[%clk 0:02:59]} 5. O-O {[%clk 0:02:50]}  a6 {[%clk 0:03:00]} 6. a4 {[%clk 0:02:49]}  c5 {[%clk 0:02:59]} 7. Nc3 {[%clk 0:02:47]}  Nc6 {[%clk 0:02:59]} 8. b3 {[%clk 0:02:45]}  Be7 {[%clk 0:02:59]} 9. Bb2 {[%clk 0:02:45]}  O-O {[%clk 0:02:59]} 10. h3 {[%clk 0:02:40]}  b6 {[%clk 0:02:58]} 11. Rc1 {[%clk 0:02:28]}  Bb7 {[%clk 0:02:58]} 12. d4 {[%clk 0:02:27]}  cxd4 {[%clk 0:02:57]} 13. exd4 {[%clk 0:02:27]}  Nb4 {[%clk 0:02:57]} 14. Ne5 {[%clk 0:02:25]}  Rc8 {[%clk 0:02:56]} 15. Re1 {[%clk 0:02:24]}  Nfd5 {[%clk 0:02:55]} 16. Ne4 {[%clk 0:02:23]}  a5 {[%clk 0:02:50]} 17. Qh5 {[%clk 0:02:10]}  g6 {[%clk 0:02:23]} 18. Qh6 {[%clk 0:01:37]}  f5 {[%clk 0:02:14]} 19. Nxg6 {[%clk 0:01:36]}  fxe4 {[%clk 0:02:03]} 20. Nxf8 {[%clk 0:01:36]}  Qxf8 {[%clk 0:01:56]} 21. Qxe6+ {[%clk 0:01:35]}  Qf7 {[%clk 0:01:56]} 22. Bxd5 {[%clk 0:01:34]}  Nxd5 {[%clk 0:01:33]} 23. Rxc8+ {[%clk 0:01:32]}  Bxc8 {[%clk 0:01:33]} 24. Qxc8+ {[%clk 0:01:32]}  Kg7 {[%clk 0:01:34]} 25. Rxe4 {[%clk 0:01:28]}  Nf6 {[%clk 0:01:32]} 26. d5 {[%clk 0:01:26]}  h5 {[%clk 0:01:28]} 27. Qf5 {[%clk 0:01:21]}  Kf8 {[%clk 0:01:25]} 28. Rxe7 {[%clk 0:01:19]}  Kxe7 {[%clk 0:01:26]} 29. d6+ {[%clk 0:01:17]}  Ke8 {[%clk 0:01:21]} 30. Qxf6 {[%clk 0:01:18]}  Qxb3 {[%clk 0:01:20]} 31. Qe7# {[%clk 0:01:18]} 1-0


[Site "https://www.chess.com"]

[Event "Titled Tuesday Blitz May 16 Late 2023"]
[White "Makridis, Dimitrios"]
[Black "Mackster23"]
[WhiteFideId "25864475"]
[WhiteElo "2277"]
[BlackElo "2443"]
[Result "1-0"]
[Round "01"]
[TimeControl "180+2"]
[Date "2023.05.16"]
[WhiteClock "0:00:11"]
[BlackClock "0:00:07"]

1. e4 {[%clk 0:02:31]}  e6 {[%clk 0:02:51]} 2. d4 {[%clk 0:02:25]}  d5 {[%clk 0:02:49]} 3. e5 {[%clk 0:02:24]}  c5 {[%clk 0:02:48]} 4. c3 {[%clk 0:02:12]}  Nc6 {[%clk 0:02:46]} 5. f4 {[%clk 0:02:09]}  Qb6 {[%clk 0:02:28]} 6. Nf3 {[%clk 0:02:06]}  f6 {[%clk 0:02:23]} 7. Bd3 {[%clk 0:01:52]}  Bd7 {[%clk 0:02:16]} 8. Na3 {[%clk 0:01:44]}  cxd4 {[%clk 0:02:13]} 9. cxd4 {[%clk 0:01:44]}  Bb4+ {[%clk 0:02:13]} 10. Bd2 {[%clk 0:01:41]}  Nxd4 {[%clk 0:01:55]} 11. Nc2 {[%clk 0:01:35]}  Nxc2+ {[%clk 0:01:47]} 12. Qxc2 {[%clk 0:01:32]}  Qe3+ {[%clk 0:01:42]} 13. Kd1 {[%clk 0:01:29]}  Bxd2 {[%clk 0:01:40]} 14. Qxd2 {[%clk 0:01:26]}  Qxd2+ {[%clk 0:01:37]} 15. Kxd2 {[%clk 0:01:27]}  Ne7 {[%clk 0:01:31]} 16. Rhc1 {[%clk 0:01:03]}  Nc6 {[%clk 0:01:13]} 17. a3 {[%clk 0:00:49]}  a6 {[%clk 0:01:10]} 18. b4 {[%clk 0:00:45]}  Ke7 {[%clk 0:01:08]} 19. Ke3 {[%clk 0:00:44]}  Rac8 {[%clk 0:01:03]} 20. g3 {[%clk 0:00:39]}  h6 {[%clk 0:00:58]} 21. Nh4 {[%clk 0:00:38]}  Be8 {[%clk 0:00:48]} 22. a4 {[%clk 0:00:31]}  g5 {[%clk 0:00:32]} 23. Nf3 {[%clk 0:00:28]}  Bh5 {[%clk 0:00:27]} 24. b5 {[%clk 0:00:24]}  axb5 {[%clk 0:00:25]} 25. axb5 {[%clk 0:00:24]}  Nb4 {[%clk 0:00:20]} 26. Nd4 {[%clk 0:00:24]}  fxe5 {[%clk 0:00:18]} 27. fxe5 {[%clk 0:00:16]}  Nxd3 {[%clk 0:00:18]} 28. Kxd3 {[%clk 0:00:15]}  Bg6+ {[%clk 0:00:19]} 29. Ke3 {[%clk 0:00:15]}  Rhf8 {[%clk 0:00:20]} 30. Rxc8 {[%clk 0:00:14]}  Rxc8 {[%clk 0:00:20]} 31. Ra7 {[%clk 0:00:14]}  Rc7 {[%clk 0:00:20]} 32. b6 {[%clk 0:00:12]}  Rd7 {[%clk 0:00:20]} 33. Nb5 {[%clk 0:00:12]}  Be8 {[%clk 0:00:17]} 34. Kd4 {[%clk 0:00:12]}  Kd8 {[%clk 0:00:15]} 35. Nd6 {[%clk 0:00:12]}  Ke7 {[%clk 0:00:14]} 36. Nxb7 {[%clk 0:00:11]}  Bh5 {[%clk 0:00:07]} 37. Nc5 {[%clk 0:00:11]} 1-0


[Site "https://www.chess.com"]

[Event "Titled Tuesday Blitz May 16 Late 2023"]
[White "Hayrapetyan, Hovik"]
[Black "Ziatdinov, Raset"]
[WhiteFideId "13302639"]
[BlackFideId "2015323"]
[WhiteElo "2348"]
[BlackElo "2220"]
[Result "1-0"]
[Round "01"]
[TimeControl "180+2"]
[Date "2023.05.16"]
[WhiteClock "0:01:29"]
[BlackClock "0:00:50"]

1. d4 {[%clk 0:03:00]}  Nf6 {[%clk 0:02:59]} 2. c4 {[%clk 0:03:00]}  g6 {[%clk 0:02:59]} 3. Nc3 {[%clk 0:03:01]}  Bg7 {[%clk 0:03:00]} 4. g3 {[%clk 0:03:00]}  d6 {[%clk 0:03:00]} 5. Bg2 {[%clk 0:03:00]}  O-O {[%clk 0:03:00]} 6. Nf3 {[%clk 0:03:01]}  Nc6 {[%clk 0:03:00]} 7. d5 {[%clk 0:03:01]}  Na5 {[%clk 0:02:58]} 8. b3 {[%clk 0:03:01]}  c5 {[%clk 0:02:38]} 9. Bb2 {[%clk 0:03:00]}  a6 {[%clk 0:02:36]} 10. O-O {[%clk 0:02:57]}  Bd7 {[%clk 0:02:35]} 11. Qc2 {[%clk 0:02:56]}  Rb8 {[%clk 0:02:35]} 12. Rab1 {[%clk 0:02:56]}  b5 {[%clk 0:02:35]} 13. Nd2 {[%clk 0:02:56]}  bxc4 {[%clk 0:02:30]} 14. bxc4 {[%clk 0:02:57]}  Qc7 {[%clk 0:02:25]} 15. h3 {[%clk 0:02:53]}  Rb7 {[%clk 0:02:20]} 16. Ba1 {[%clk 0:02:51]}  Rfb8 {[%clk 0:02:19]} 17. Rxb7 {[%clk 0:02:51]}  Rxb7 {[%clk 0:02:17]} 18. Rb1 {[%clk 0:02:42]}  Qb8 {[%clk 0:02:15]} 19. Rxb7 {[%clk 0:02:41]}  Qxb7 {[%clk 0:02:16]} 20. Ncb1 {[%clk 0:02:33]}  Qb4 {[%clk 0:02:03]} 21. Bc3 {[%clk 0:02:30]}  Qb6 {[%clk 0:01:56]} 22. Na3 {[%clk 0:02:26]}  Ne8 {[%clk 0:01:41]} 23. Qb1 {[%clk 0:02:15]}  Qxb1+ {[%clk 0:01:30]} 24. Naxb1 {[%clk 0:02:16]}  Bxc3 {[%clk 0:01:30]} 25. Nxc3 {[%clk 0:02:17]}  Nc7 {[%clk 0:01:26]} 26. e4 {[%clk 0:02:14]}  Kg7 {[%clk 0:01:23]} 27. f4 {[%clk 0:02:11]}  e5 {[%clk 0:01:21]} 28. fxe5 {[%clk 0:02:09]}  dxe5 {[%clk 0:01:21]} 29. g4 {[%clk 0:02:06]}  Kf8 {[%clk 0:01:21]} 30. Kf2 {[%clk 0:02:00]}  Ne8 {[%clk 0:01:20]} 31. Bf1 {[%clk 0:01:59]}  Nd6 {[%clk 0:01:21]} 32. Bd3 {[%clk 0:01:56]}  Ke7 {[%clk 0:01:18]} 33. Nd1 {[%clk 0:01:53]}  f5 {[%clk 0:01:13]} 34. gxf5 {[%clk 0:01:52]}  gxf5 {[%clk 0:01:14]} 35. exf5 {[%clk 0:01:53]}  Bxf5 {[%clk 0:01:15]} 36. Bxf5 {[%clk 0:01:49]}  Nxf5 {[%clk 0:01:16]} 37. Ne3 {[%clk 0:01:49]}  Nd6 {[%clk 0:01:11]} 38. Kf3 {[%clk 0:01:42]}  Kf6 {[%clk 0:01:10]} 39. Ne4+ {[%clk 0:01:36]}  Nxe4 {[%clk 0:01:06]} 40. Kxe4 {[%clk 0:01:37]}  Nb7 {[%clk 0:01:07]} 41. Ng4+ {[%clk 0:01:37]}  Kg5 {[%clk 0:01:06]} 42. Nxe5 {[%clk 0:01:37]}  Nd6+ {[%clk 0:01:06]} 43. Kd3 {[%clk 0:01:37]}  Kh4 {[%clk 0:01:00]} 44. Nf3+ {[%clk 0:01:25]}  Kg3 {[%clk 0:00:57]} 45. Ng5 {[%clk 0:01:25]}  h6 {[%clk 0:00:56]} 46. Ne4+ {[%clk 0:01:26]}  Nxe4 {[%clk 0:00:50]} 47. Kxe4 {[%clk 0:01:26]}  Kxh3 {[%clk 0:00:51]} 48. d6 {[%clk 0:01:27]}  Kg3 {[%clk 0:00:52]} 49. d7 {[%clk 0:01:28]}  h5 {[%clk 0:00:53]} 50. d8=Q {[%clk 0:01:29]}  h4 {[%clk 0:00:50]} 51. Qg5+ {[%clk 0:01:29]} 1-0


[Site "https://www.chess.com"]